[Event "*** Titled Tuesday Blitz"]
[Site "Chess.com"]
[Date "2020.04.07"]
[Round "8"]
[White "adiosabu"]
[Black "AsselLesbekova"]
[Result "1-0"]
[WhiteElo "2502"]
[BlackElo "2315"]
[TimeControl "180+1"]
[EndTime "14:34:42 PDT"]
[Termination "adiosabu won by resignation"]

1. e4 {[%clk 0:03:00.9]} 1... c5 {[%clk 0:02:57.2]} 2. Nf3 {[%clk 0:02:55.1]}
2... Nc6 {[%clk 0:02:51.8]} 3. d4 {[%clk 0:02:54.4]} 3... cxd4 {[%clk
0:02:49.1]} 4. Nxd4 {[%clk 0:02:55.3]} 4... e5 {[%clk 0:02:49.2]} 5. Nb5 {[%clk
0:02:54.3]} 5... d6 {[%clk 0:02:49.1]} 6. c4 {[%clk 0:02:53.8]} 6... Be7 {[%clk
0:02:48.7]} 7. N1c3 {[%clk 0:02:53.2]} 7... a6 {[%clk 0:02:48.9]} 8. Na3 {[%clk
0:02:53.7]} 8... Be6 {[%clk 0:02:48.8]} 9. Bd3 {[%clk 0:02:53.4]} 9... Rc8
{[%clk 0:02:47.9]} 10. O-O {[%clk 0:02:52.2]} 10... Na5 {[%clk 0:02:47.1]} 11.
Qe2 {[%clk 0:02:47.7]} 11... Nf6 {[%clk 0:02:44.5]} 12. b4 {[%clk 0:02:38.5]}
12... Nc6 {[%clk 0:02:43.5]} 13. Nc2 {[%clk 0:02:39]} 13... O-O {[%clk
0:02:36.3]} 14. a3 {[%clk 0:02:35.8]} 14... Qd7 {[%clk 0:02:20.1]} 15. h3 {[%clk
0:02:16.1]} 15... Ne8 {[%clk 0:02:14.9]} 16. Nd5 {[%clk 0:02:09.7]} 16... f5
{[%clk 0:02:12.4]} 17. Nb6 {[%clk 0:02:03.5]} 17... Qc7 {[%clk 0:02:10.6]} 18.
Nxc8 {[%clk 0:02:02.4]} 18... Qxc8 {[%clk 0:02:11.5]} 19. exf5 {[%clk
0:02:01.6]} 19... Bxf5 {[%clk 0:02:12.4]} 20. Bxf5 {[%clk 0:02:01.2]} 20... Qxf5
{[%clk 0:02:13]} 21. Ne3 {[%clk 0:01:48.7]} 21... Nd4 {[%clk 0:02:05.6]} 22. Qg4
{[%clk 0:01:39.5]} 22... Qxg4 {[%clk 0:02:02.1]} 23. hxg4 {[%clk 0:01:36.9]}
23... Bg5 {[%clk 0:01:33]} 24. Ra2 {[%clk 0:01:36]} 24... Nb3 {[%clk 0:01:20.6]}
25. Re2 {[%clk 0:01:13.1]} 25... Nd4 {[%clk 0:01:05.8]} 26. Ree1 {[%clk
0:01:09.3]} 26... Nf6 {[%clk 0:01:02.7]} 27. f3 {[%clk 0:00:59.9]} 27... Nb3
{[%clk 0:01:00.7]} 28. Bb2 {[%clk 0:00:56]} 28... Nd2 {[%clk 0:00:56.2]} 29. Rf2
{[%clk 0:00:52.2]} 29... Bxe3 {[%clk 0:00:54.3]} 30. Rxe3 {[%clk 0:00:51.5]}
30... Nxc4 {[%clk 0:00:54.7]} 31. Rd3 {[%clk 0:00:50.4]} 31... b5 {[%clk
0:00:47.2]} 32. Bc1 {[%clk 0:00:45.3]} 32... Kf7 {[%clk 0:00:44.3]} 33. g5
{[%clk 0:00:38.7]} 33... Nd7 {[%clk 0:00:44.2]} 34. f4 {[%clk 0:00:38.5]} 34...
Ke6 {[%clk 0:00:38.8]} 35. g3 {[%clk 0:00:38.5]} 35... e4 {[%clk 0:00:36.7]} 36.
Rd1 {[%clk 0:00:28.2]} 36... d5 {[%clk 0:00:37]} 37. f5+ {[%clk 0:00:25.6]}
37... Kd6 {[%clk 0:00:29.1]} 38. Kg2 {[%clk 0:00:19.6]} 38... Nde5 {[%clk
0:00:26.6]} 39. Rf4 {[%clk 0:00:17.3]} 39... Nd3 {[%clk 0:00:26.1]} 40. Rh4
{[%clk 0:00:16.1]} 40... Rh8 {[%clk 0:00:23.7]} 41. g6 {[%clk 0:00:15.2]} 41...
h6 {[%clk 0:00:22.7]} 42. f6 {[%clk 0:00:15.1]} 42... gxf6 {[%clk 0:00:21.9]}
43. g7 {[%clk 0:00:15.2]} 43... Rg8 {[%clk 0:00:21.2]} 44. Bxh6 {[%clk
0:00:15.1]} 44... Ndb2 {[%clk 0:00:17.7]} 45. Rf1 {[%clk 0:00:13.8]} 45... Nd3
{[%clk 0:00:15.5]} 46. Rxf6+ {[%clk 0:00:12.9]} 46... Ke5 {[%clk 0:00:15.5]} 47.
Rf8 {[%clk 0:00:13.3]} 47... Ne1+ {[%clk 0:00:11.8]} 48. Kh3 {[%clk 0:00:12]}
48... Nf3 {[%clk 0:00:09.7]} 49. Rxg8 {[%clk 0:00:11.2]} 49... Ng1+ {[%clk
0:00:10]} 50. Kg2 {[%clk 0:00:10.9]} 50... e3 {[%clk 0:00:10.2]} 51. Re8+ {[%clk
0:00:11.3]} 51... Kf5 {[%clk 0:00:08.8]} 52. g8=Q {[%clk 0:00:11.1]} 52... e2
{[%clk 0:00:09.7]} 1-0

[Event "*** Titled Tuesday Blitz"]
[Site "Chess.com"]
[Date "2020.04.07"]
[Round "8"]
[White "Sjakkerntobi"]
[Black "MrrRefrao"]
[Result "1-0"]
[WhiteElo "2271"]
[BlackElo "2410"]
[TimeControl "180+1"]
[EndTime "14:34:42 PDT"]
[Termination "Sjakkerntobi won on time"]

1. e4 {[%clk 0:03:00.9]} 1... c5 {[%clk 0:02:57.3]} 2. Nf3 {[%clk 0:02:57.3]}
2... Nc6 {[%clk 0:02:56.9]} 3. d4 {[%clk 0:02:54.6]} 3... cxd4 {[%clk
0:02:57.8]} 4. Nxd4 {[%clk 0:02:55.5]} 4... Nf6 {[%clk 0:02:58.5]} 5. Nc3 {[%clk
0:02:55.4]} 5... e5 {[%clk 0:02:58.4]} 6. Ndb5 {[%clk 0:02:55.1]} 6... d6 {[%clk
0:02:55]} 7. Nd5 {[%clk 0:02:48.3]} 7... Nxd5 {[%clk 0:02:50.9]} 8. exd5 {[%clk
0:02:49.2]} 8... Nb8 {[%clk 0:02:48.3]} 9. c4 {[%clk 0:02:47]} 9... Be7 {[%clk
0:02:47.2]} 10. Bd3 {[%clk 0:02:46]} 10... O-O {[%clk 0:02:43.9]} 11. g4 {[%clk
0:02:45.6]} 11... a6 {[%clk 0:02:25.9]} 12. Nc3 {[%clk 0:02:43.7]} 12... Bg5
{[%clk 0:02:17.1]} 13. h4 {[%clk 0:02:31.8]} 13... Bxc1 {[%clk 0:02:03.2]} 14.
Rxc1 {[%clk 0:02:30.7]} 14... f5 {[%clk 0:01:51.9]} 15. gxf5 {[%clk 0:02:28.1]}
15... Bxf5 {[%clk 0:01:51.8]} 16. h5 {[%clk 0:02:16.2]} 16... Nd7 {[%clk
0:01:40]} 17. Bxf5 {[%clk 0:02:13.4]} 17... Rxf5 {[%clk 0:01:38.4]} 18. Ne4
{[%clk 0:02:14.3]} 18... Rf4 {[%clk 0:01:19.9]} 19. Qe2 {[%clk 0:02:07.3]} 19...
Nf6 {[%clk 0:01:13.8]} 20. Ng3 {[%clk 0:01:56.1]} 20... Qa5+ {[%clk 0:01:01.6]}
21. Rc3 {[%clk 0:01:50.1]} 21... Qxa2 {[%clk 0:00:41.8]} 22. O-O {[%clk
0:01:46.7]} 22... Qa5 {[%clk 0:00:37.3]} 23. Rf3 {[%clk 0:01:44.6]} 23... Rxf3
{[%clk 0:00:36.6]} 24. Qxf3 {[%clk 0:01:45.5]} 24... Qd2 {[%clk 0:00:32.6]} 25.
Kh1 {[%clk 0:01:41.2]} 25... Rf8 {[%clk 0:00:31.4]} 26. Rg1 {[%clk 0:01:39.3]}
26... Qh6 {[%clk 0:00:19.8]} 27. Qf5 {[%clk 0:01:33.8]} 27... e4 {[%clk
0:00:17.4]} 28. Qe6+ {[%clk 0:01:32.9]} 28... Kh8 {[%clk 0:00:17.6]} 29. Qe7
{[%clk 0:01:32.4]} 29... Rg8 {[%clk 0:00:07]} 30. Qxd6 {[%clk 0:01:26.3]} 30...
Qd2 {[%clk 0:00:02.2]} 31. h6 {[%clk 0:01:00.3]} 31... Qxh6+ {[%clk 0:00:01.5]}
32. Kg2 {[%clk 0:00:59.1]} 32... Qd2 {[%clk 0:00:02.1]} 33. Qe6 {[%clk
0:00:52.1]} 33... Qxb2 {[%clk 0:00:02.1]} 34. Nf5 {[%clk 0:00:50]} 34... e3
{[%clk 0:00:02.4]} 35. Nxe3 {[%clk 0:00:43.8]} 35... Re8 {[%clk 0:00:02.9]} 36.
Qh3 {[%clk 0:00:36.2]} 36... Qd4 {[%clk 0:00:03.4]} 37. Kf1 {[%clk 0:00:29.8]}
37... Qd3+ {[%clk 0:00:02.7]} 38. Kg2 {[%clk 0:00:28.5]} 38... Qe4+ {[%clk
0:00:02.9]} 39. Kf1 {[%clk 0:00:28.5]} 39... b5 {[%clk 0:00:03.8]} 40. Qg3
{[%clk 0:00:20.3]} 40... g6 {[%clk 0:00:02.4]} 41. Qd6 {[%clk 0:00:19.5]} 41...
Kg7 {[%clk 0:00:01.9]} 42. cxb5 {[%clk 0:00:18]} 42... axb5 {[%clk 0:00:01.9]}
43. Qc7+ {[%clk 0:00:18.3]} 43... Re7 {[%clk 0:00:01.2]} 44. Qc2 {[%clk
0:00:15.3]} 1-0

[Event "*** Titled Tuesday Blitz"]
[Site "Chess.com"]
[Date "2020.04.07"]
[Round "8"]
[White "MikeKorovin"]
[Black "RitvarsReimanis"]
[Result "1/2-1/2"]
[WhiteElo "2766"]
[BlackElo "2618"]
[TimeControl "180+1"]
[EndTime "14:34:44 PDT"]
[Termination "Game drawn by repetition"]

1. Nf3 {[%clk 0:03:00.9]} 1... Nf6 {[%clk 0:03:00.1]} 2. b3 {[%clk 0:02:56.1]}
2... e6 {[%clk 0:02:58.8]} 3. Bb2 {[%clk 0:02:57]} 3... d5 {[%clk 0:02:59.7]} 4.
g3 {[%clk 0:02:56.9]} 4... Be7 {[%clk 0:02:59.9]} 5. Bg2 {[%clk 0:02:57.8]} 5...
O-O {[%clk 0:03:00.8]} 6. O-O {[%clk 0:02:58.7]} 6... b6 {[%clk 0:03:01.7]} 7.
d3 {[%clk 0:02:59.6]} 7... Bb7 {[%clk 0:03:02.3]} 8. Nbd2 {[%clk 0:03:00.5]}
8... Nbd7 {[%clk 0:03:02.5]} 9. e4 {[%clk 0:03:00.8]} 9... dxe4 {[%clk 0:03:02]}
10. Ng5 {[%clk 0:03:01]} 10... Nc5 {[%clk 0:02:48.6]} 11. Ngxe4 {[%clk
0:02:33.9]} 11... Nfxe4 {[%clk 0:02:46.8]} 12. Nxe4 {[%clk 0:02:30.2]} 12...
Nxe4 {[%clk 0:02:46.8]} 13. Bxe4 {[%clk 0:02:27.9]} 13... Bxe4 {[%clk
0:02:43.4]} 14. dxe4 {[%clk 0:02:28.8]} 14... Qxd1 {[%clk 0:02:39]} 15. Rfxd1
{[%clk 0:02:29.7]} 15... Rfd8 {[%clk 0:02:37]} 16. Kf1 {[%clk 0:02:23]} 16... f6
{[%clk 0:02:29.1]} 17. Ke2 {[%clk 0:02:22.4]} 17... Kf7 {[%clk 0:02:27.7]} 18.
a4 {[%clk 0:02:18]} 18... a6 {[%clk 0:02:20.8]} 19. f3 {[%clk 0:02:13.9]} 19...
Rxd1 {[%clk 0:02:13.8]} 20. Rxd1 {[%clk 0:02:13.1]} 20... Rd8 {[%clk 0:02:14.1]}
21. Rxd8 {[%clk 0:02:03.6]} 21... Bxd8 {[%clk 0:02:15]} 22. Kd3 {[%clk
0:02:02.8]} 22... Ke7 {[%clk 0:02:09.4]} 23. Kc4 {[%clk 0:01:51.1]} 23... Kd6
{[%clk 0:02:07.2]} 24. b4 {[%clk 0:01:45.7]} 24... c6 {[%clk 0:01:58]} 25. b5
{[%clk 0:01:45.3]} 25... axb5+ {[%clk 0:01:29.3]} 26. axb5 {[%clk 0:01:46.2]}
26... c5 {[%clk 0:01:29.7]} 27. e5+ {[%clk 0:01:25.4]} 27... Ke7 {[%clk
0:01:05.4]} 28. Kd3 {[%clk 0:01:04.4]} 28... f5 {[%clk 0:01:00.2]} 29. Bc1
{[%clk 0:00:56.7]} 29... Kf7 {[%clk 0:00:55.6]} 30. g4 {[%clk 0:00:54.4]} 30...
g6 {[%clk 0:00:53.9]} 31. h3 {[%clk 0:00:52.1]} 31... Bc7 {[%clk 0:00:50.3]} 32.
Bf4 {[%clk 0:00:47.3]} 32... Bd8 {[%clk 0:00:50.5]} 33. Kc4 {[%clk 0:00:38.3]}
33... Bc7 {[%clk 0:00:48.2]} 34. Bg3 {[%clk 0:00:35.7]} 34... Bd8 {[%clk
0:00:43.3]} 35. Bf2 {[%clk 0:00:35.5]} 35... Be7 {[%clk 0:00:40.5]} 36. Be3
{[%clk 0:00:33.9]} 36... h5 {[%clk 0:00:36.7]} 37. Bd2 {[%clk 0:00:27.7]} 37...
Ke8 {[%clk 0:00:36.2]} 38. Be3 {[%clk 0:00:16.9]} 38... Kf7 {[%clk 0:00:36.2]}
39. Bf2 {[%clk 0:00:16.6]} 39... Ke8 {[%clk 0:00:36.2]} 40. Kd3 {[%clk
0:00:16.6]} 40... Kf7 {[%clk 0:00:34.5]} 41. c4 {[%clk 0:00:16.2]} 41... hxg4
{[%clk 0:00:22.5]} 42. fxg4 {[%clk 0:00:15.8]} 42... g5 {[%clk 0:00:20.4]} 43.
Be3 {[%clk 0:00:10]} 43... Kg6 {[%clk 0:00:17.8]} 44. Bd2 {[%clk 0:00:09.5]}
44... Kf7 {[%clk 0:00:16.9]} 45. Ke3 {[%clk 0:00:09.5]} 45... Kg6 {[%clk
0:00:16.8]} 46. Kf3 {[%clk 0:00:09.6]} 46... Kf7 {[%clk 0:00:16.6]} 47. Kg3
{[%clk 0:00:06.6]} 47... Kg6 {[%clk 0:00:17.1]} 48. Kg2 {[%clk 0:00:06.9]} 48...
Kf7 {[%clk 0:00:17.4]} 49. Kf3 {[%clk 0:00:07.1]} 49... Kg6 {[%clk 0:00:17.8]}
50. Be3 {[%clk 0:00:07.3]} 50... Kf7 {[%clk 0:00:17.9]} 51. Bf2 {[%clk
0:00:07.1]} 51... Kg6 {[%clk 0:00:18.2]} 52. Ke3 {[%clk 0:00:06.9]} 52... Bd8
{[%clk 0:00:17.8]} 53. Kf3 {[%clk 0:00:07.4]} 53... Be7 {[%clk 0:00:18.3]} 54.
Be3 {[%clk 0:00:07.6]} 54... Kf7 {[%clk 0:00:18]} 55. Bf2 {[%clk 0:00:08]} 55...
Kg6 {[%clk 0:00:18.4]} 1/2-1/2

[Event "*** Titled Tuesday Blitz"]
[Site "Chess.com"]
[Date "2020.04.07"]
[Round "8"]
[White "Colombiano07"]
[Black "MusicCityMaster"]
[Result "1-0"]
[WhiteElo "2245"]
[BlackElo "2293"]
[TimeControl "180+1"]
[EndTime "14:34:47 PDT"]
[Termination "Colombiano07 won by resignation"]

1. Nf3 {[%clk 0:03:00.9]} 1... Nf6 {[%clk 0:02:59.3]} 2. b3 {[%clk 0:03:00.5]}
2... d6 {[%clk 0:02:54.5]} 3. d4 {[%clk 0:03:00]} 3... Nbd7 {[%clk 0:02:53.7]}
4. Bb2 {[%clk 0:02:59.6]} 4... b6 {[%clk 0:02:54]} 5. g3 {[%clk 0:02:59.1]} 5...
Bb7 {[%clk 0:02:54.5]} 6. Bg2 {[%clk 0:02:59.8]} 6... c5 {[%clk 0:02:54.4]} 7.
O-O {[%clk 0:02:59.9]} 7... e6 {[%clk 0:02:52]} 8. c4 {[%clk 0:02:59.1]} 8...
Be7 {[%clk 0:02:51]} 9. Nc3 {[%clk 0:02:57.2]} 9... O-O {[%clk 0:02:51.1]} 10.
d5 {[%clk 0:02:48.1]} 10... e5 {[%clk 0:02:46]} 11. Nd2 {[%clk 0:02:46.2]} 11...
Re8 {[%clk 0:02:41.3]} 12. Bh3 {[%clk 0:02:43.4]} 12... Bf8 {[%clk 0:02:39.9]}
13. Bxd7 {[%clk 0:02:42.2]} 13... Qxd7 {[%clk 0:02:36.9]} 14. e4 {[%clk
0:02:41.5]} 14... g6 {[%clk 0:02:30]} 15. Kg2 {[%clk 0:02:41]} 15... Bc8 {[%clk
0:02:28.8]} 16. f3 {[%clk 0:02:39]} 16... Qh3+ {[%clk 0:02:28.2]} 17. Kg1 {[%clk
0:02:38.7]} 17... Bh6 {[%clk 0:02:27.3]} 18. Qe2 {[%clk 0:02:37.2]} 18... Nh5
{[%clk 0:02:23.6]} 19. Rad1 {[%clk 0:02:31.1]} 19... a6 {[%clk 0:02:00]} 20. Bc1
{[%clk 0:02:25.1]} 20... Rf8 {[%clk 0:01:55.2]} 21. Ndb1 {[%clk 0:02:19.7]}
21... Bxc1 {[%clk 0:01:50.3]} 22. Rxc1 {[%clk 0:02:20.6]} 22... f5 {[%clk
0:01:49.3]} 23. Qg2 {[%clk 0:02:17.5]} 23... Qxg2+ {[%clk 0:01:36.8]} 24. Kxg2
{[%clk 0:02:18.4]} 24... Bd7 {[%clk 0:01:31.1]} 25. Na3 {[%clk 0:02:07.9]} 25...
b5 {[%clk 0:01:21.4]} 26. cxb5 {[%clk 0:01:34.1]} 26... axb5 {[%clk 0:01:21.4]}
27. Ncxb5 {[%clk 0:01:34.7]} 27... Bxb5 {[%clk 0:01:20.6]} 28. Nxb5 {[%clk
0:01:35.6]} 28... Rxa2+ {[%clk 0:01:20.8]} 29. Kg1 {[%clk 0:01:27.5]} 29... Rb8
{[%clk 0:01:00.9]} 30. Nxd6 {[%clk 0:01:23.9]} 30... Rxb3 {[%clk 0:01:00.5]} 31.
Rf2 {[%clk 0:01:22.9]} 31... Rxf2 {[%clk 0:00:58.2]} 32. Kxf2 {[%clk 0:01:23.8]}
32... Rb2+ {[%clk 0:00:58.2]} 33. Kg1 {[%clk 0:01:03.2]} 33... fxe4 {[%clk
0:00:45.3]} 34. Nxe4 {[%clk 0:00:54.6]} 34... Rb3 {[%clk 0:00:44.7]} 35. Kg2
{[%clk 0:00:51.4]} 35... Rb2+ {[%clk 0:00:43.3]} 36. Kh3 {[%clk 0:00:50.3]}
36... Rb3 {[%clk 0:00:36.8]} 37. Kg4 {[%clk 0:00:44.3]} 37... Kf7 {[%clk
0:00:28]} 38. Rxc5 {[%clk 0:00:43.2]} 38... Nf6+ {[%clk 0:00:27.9]} 39. Nxf6
{[%clk 0:00:43.2]} 39... Kxf6 {[%clk 0:00:28.8]} 40. Rc6+ {[%clk 0:00:43.3]}
40... Kg7 {[%clk 0:00:25.4]} 41. Re6 {[%clk 0:00:39.2]} 41... h5+ {[%clk
0:00:19.1]} 42. Kg5 {[%clk 0:00:38.8]} 42... Rxf3 {[%clk 0:00:19.1]} 43. Rxg6+
{[%clk 0:00:37.9]} 43... Kf7 {[%clk 0:00:19.3]} 44. Re6 {[%clk 0:00:33.6]} 44...
Rf2 {[%clk 0:00:19.4]} 45. h4 {[%clk 0:00:33.1]} 45... Rf3 {[%clk 0:00:18.6]}
46. Kxh5 {[%clk 0:00:27.8]} 46... Rxg3 {[%clk 0:00:18.6]} 47. Rxe5 {[%clk
0:00:28.3]} 47... Rd3 {[%clk 0:00:17.9]} 48. Kg5 {[%clk 0:00:24.9]} 48... Rg3+
{[%clk 0:00:16.4]} 49. Kf4 {[%clk 0:00:24.7]} 49... Rh3 {[%clk 0:00:16]} 50. h5
{[%clk 0:00:24.9]} 50... Kf6 {[%clk 0:00:15.2]} 51. Re6+ {[%clk 0:00:23.9]}
51... Kf7 {[%clk 0:00:15]} 52. h6 {[%clk 0:00:23.4]} 52... Rh5 {[%clk 0:00:15]}
53. Ke4 {[%clk 0:00:23.3]} 53... Rh4+ {[%clk 0:00:14.8]} 54. Ke5 {[%clk
0:00:23.5]} 54... Rh5+ {[%clk 0:00:13.9]} 55. Kd6 {[%clk 0:00:23.6]} 55... Rh1
{[%clk 0:00:13.3]} 56. Re7+ {[%clk 0:00:22.6]} 56... Kf6 {[%clk 0:00:12.2]} 57.
h7 {[%clk 0:00:22.8]} 1-0

[Event "*** Titled Tuesday Blitz"]
[Site "Chess.com"]
[Date "2020.04.07"]
[Round "8"]
[White "Harut-1998"]
[Black "boasovietica"]
[Result "0-1"]
[WhiteElo "2633"]
[BlackElo "2452"]
[TimeControl "180+1"]
[EndTime "14:34:49 PDT"]
[Termination "boasovietica won on time"]

1. d4 {[%clk 0:03:00.9]} 1... Nf6 {[%clk 0:02:59.2]} 2. c4 {[%clk 0:03:01]} 2...
e6 {[%clk 0:02:59.2]} 3. g3 {[%clk 0:03:01.1]} 3... d5 {[%clk 0:02:59]} 4. Nf3
{[%clk 0:03:00.4]} 4... dxc4 {[%clk 0:02:58.7]} 5. Bg2 {[%clk 0:03:00.2]} 5...
a6 {[%clk 0:02:58.5]} 6. O-O {[%clk 0:03:00.2]} 6... b5 {[%clk 0:02:58.4]} 7.
Ne5 {[%clk 0:02:44.5]} 7... Nd5 {[%clk 0:02:57.3]} 8. a4 {[%clk 0:02:26.6]} 8...
Bb7 {[%clk 0:02:56]} 9. b3 {[%clk 0:02:26.5]} 9... cxb3 {[%clk 0:02:47.1]} 10.
Qxb3 {[%clk 0:02:20.7]} 10... c6 {[%clk 0:02:45.6]} 11. Ba3 {[%clk 0:01:55.6]}
11... Nd7 {[%clk 0:02:24.6]} 12. Bxf8 {[%clk 0:01:51.7]} 12... Nxf8 {[%clk
0:02:10.3]} 13. Nc3 {[%clk 0:01:48.8]} 13... Nd7 {[%clk 0:02:00.2]} 14. Nd3
{[%clk 0:01:07.7]} 14... O-O {[%clk 0:01:55.5]} 15. Ne4 {[%clk 0:01:06.6]} 15...
Qe7 {[%clk 0:01:43.8]} 16. Rfc1 {[%clk 0:01:05.1]} 16... Rfc8 {[%clk 0:01:35.8]}
17. e3 {[%clk 0:01:01.3]} 17... N5b6 {[%clk 0:01:07.9]} 18. Nec5 {[%clk
0:00:57.5]} 18... Nxc5 {[%clk 0:01:05.5]} 19. Nxc5 {[%clk 0:00:58.4]} 19... Nd5
{[%clk 0:01:01.1]} 20. Ra2 {[%clk 0:00:52.7]} 20... Rcb8 {[%clk 0:00:50.4]} 21.
Rac2 {[%clk 0:00:51.2]} 21... Bc8 {[%clk 0:00:44]} 22. Nd3 {[%clk 0:00:45.1]}
22... Bd7 {[%clk 0:00:40.8]} 23. axb5 {[%clk 0:00:38]} 23... axb5 {[%clk
0:00:31.7]} 24. Ne5 {[%clk 0:00:36.5]} 24... h6 {[%clk 0:00:18]} 25. Nxc6 {[%clk
0:00:26.8]} 25... Bxc6 {[%clk 0:00:17.8]} 26. Rxc6 {[%clk 0:00:27.7]} 26... b4
{[%clk 0:00:15.5]} 27. Bxd5 {[%clk 0:00:27.1]} 27... exd5 {[%clk 0:00:15.7]} 28.
Qxd5 {[%clk 0:00:23.9]} 28... b3 {[%clk 0:00:15.1]} 29. Rb1 {[%clk 0:00:17.4]}
29... b2 {[%clk 0:00:14]} 30. Rc2 {[%clk 0:00:04.2]} 30... Ra1 {[%clk 0:00:12]}
31. Rxb2 {[%clk 0:00:02.5]} 31... Rxb1+ {[%clk 0:00:12]} 32. Rxb1 {[%clk
0:00:02.4]} 32... Rxb1+ {[%clk 0:00:12.5]} 33. Kg2 {[%clk 0:00:03.3]} 33... Rb8
{[%clk 0:00:12.8]} 34. h4 {[%clk 0:00:02.7]} 34... Re8 {[%clk 0:00:12.6]} 35. h5
{[%clk 0:00:03.6]} 35... Qe4+ {[%clk 0:00:12.4]} 36. Qxe4 {[%clk 0:00:03.8]}
36... Rxe4 {[%clk 0:00:13]} 37. Kf3 {[%clk 0:00:04.7]} 37... Re8 {[%clk
0:00:13.2]} 38. g4 {[%clk 0:00:05.3]} 38... Ra8 {[%clk 0:00:13.8]} 39. e4 {[%clk
0:00:05.7]} 39... Kf8 {[%clk 0:00:13.9]} 40. Kf4 {[%clk 0:00:06.3]} 40... Ke7
{[%clk 0:00:14.5]} 41. Ke5 {[%clk 0:00:06.1]} 41... Ra5+ {[%clk 0:00:14.4]} 42.
d5 {[%clk 0:00:06.4]} 42... Ra3 {[%clk 0:00:13.4]} 43. f4 {[%clk 0:00:07]} 43...
Rg3 {[%clk 0:00:12.9]} 44. Kf5 {[%clk 0:00:07.2]} 44... g6+ {[%clk 0:00:11.9]}
45. hxg6 {[%clk 0:00:07.3]} 45... fxg6+ {[%clk 0:00:12.3]} 46. Kxg6 {[%clk
0:00:07.8]} 46... Rxg4+ {[%clk 0:00:12.7]} 47. Kf5 {[%clk 0:00:08.5]} 47... Rg1
{[%clk 0:00:12.5]} 48. e5 {[%clk 0:00:09.1]} 48... h5 {[%clk 0:00:12.8]} 49. d6+
{[%clk 0:00:10]} 49... Kd7 {[%clk 0:00:12.5]} 50. Kf6 {[%clk 0:00:10.9]} 50...
Re1 {[%clk 0:00:12.1]} 51. f5 {[%clk 0:00:10.9]} 51... h4 {[%clk 0:00:11.3]} 52.
Kf7 {[%clk 0:00:11.2]} 52... h3 {[%clk 0:00:10.9]} 53. e6+ {[%clk 0:00:07.6]}
53... Kxd6 {[%clk 0:00:10.7]} 54. f6 {[%clk 0:00:06.6]} 54... Rxe6 {[%clk
0:00:09.9]} 0-1

[Event "*** Titled Tuesday Blitz"]
[Site "Chess.com"]
[Date "2020.04.07"]
[Round "8"]
[White "Gabix_94"]
[Black "DeGrootteZ"]
[Result "1-0"]
[WhiteElo "2891"]
[BlackElo "2714"]
[TimeControl "180+1"]
[EndTime "14:34:54 PDT"]
[Termination "Gabix_94 won by resignation"]

1. d4 {[%clk 0:03:00.9]} 1... d5 {[%clk 0:02:59.6]} 2. c4 {[%clk 0:03:00.8]}
2... e6 {[%clk 0:03:00.1]} 3. Nf3 {[%clk 0:02:59.6]} 3... Nf6 {[%clk 0:03:00.3]}
4. Nc3 {[%clk 0:02:55.8]} 4... a6 {[%clk 0:02:59.6]} 5. cxd5 {[%clk 0:02:51]}
5... exd5 {[%clk 0:03:00.5]} 6. Bg5 {[%clk 0:02:51.5]} 6... Be6 {[%clk
0:03:00.8]} 7. e3 {[%clk 0:02:50.6]} 7... Nbd7 {[%clk 0:03:00.4]} 8. Bd3 {[%clk
0:02:48.5]} 8... Bd6 {[%clk 0:03:00.8]} 9. O-O {[%clk 0:02:42.9]} 9... O-O
{[%clk 0:03:01]} 10. Bf4 {[%clk 0:02:39.1]} 10... Qe7 {[%clk 0:02:59.7]} 11. h3
{[%clk 0:02:38.2]} 11... h6 {[%clk 0:02:56.8]} 12. Rc1 {[%clk 0:02:35.5]} 12...
Rac8 {[%clk 0:02:55.6]} 13. Re1 {[%clk 0:02:34.8]} 13... Rfd8 {[%clk 0:02:43.4]}
14. a3 {[%clk 0:02:34.8]} 14... c5 {[%clk 0:02:42.6]} 15. Bxd6 {[%clk 0:02:34]}
15... Qxd6 {[%clk 0:02:43.5]} 16. dxc5 {[%clk 0:02:28.4]} 16... Nxc5 {[%clk
0:02:44.4]} 17. Ne2 {[%clk 0:02:22.1]} 17... Qb6 {[%clk 0:02:35.7]} 18. b4
{[%clk 0:02:19.8]} 18... Nce4 {[%clk 0:02:26]} 19. Nfd4 {[%clk 0:02:18.6]} 19...
Bd7 {[%clk 0:02:14.6]} 20. Qb3 {[%clk 0:02:15.5]} 20... a5 {[%clk 0:02:00.3]}
21. Nf4 {[%clk 0:02:08.8]} 21... axb4 {[%clk 0:01:50.7]} 22. axb4 {[%clk
0:02:09.7]} 22... Qd6 {[%clk 0:01:32.4]} 23. Rxc8 {[%clk 0:02:05]} 23... Rxc8
{[%clk 0:01:30.7]} 24. Nxd5 {[%clk 0:02:01.8]} 24... Nxf2 {[%clk 0:00:40.9]} 25.
Nxf6+ {[%clk 0:01:55.5]} 25... Qxf6 {[%clk 0:00:41.8]} 26. Rf1 {[%clk
0:01:55.7]} 26... Nxh3+ {[%clk 0:00:33]} 27. gxh3 {[%clk 0:01:54.8]} 27... Qg5+
{[%clk 0:00:31.4]} 28. Kh2 {[%clk 0:01:54.1]} 28... Qe5+ {[%clk 0:00:23.4]} 29.
Rf4 {[%clk 0:01:53.4]} 29... Rf8 {[%clk 0:00:19.6]} 30. Nf3 {[%clk 0:01:49.9]}
30... Qd6 {[%clk 0:00:17]} 31. Qc3 {[%clk 0:01:38.5]} 31... g5 {[%clk
0:00:16.4]} 32. Qd4 {[%clk 0:01:36.1]} 32... Qc7 {[%clk 0:00:15.2]} 33. Qe4
{[%clk 0:01:21.4]} 33... f5 {[%clk 0:00:09.5]} 34. Qc4+ {[%clk 0:01:18.3]} 34...
Qxc4 {[%clk 0:00:09.9]} 35. Bxc4+ {[%clk 0:01:16.6]} 35... Kg7 {[%clk
0:00:09.4]} 36. Rd4 {[%clk 0:01:17]} 36... Bc6 {[%clk 0:00:09.6]} 37. Ne5 {[%clk
0:01:17.2]} 37... Re8 {[%clk 0:00:10]} 38. Nxc6 {[%clk 0:01:07.1]} 38... bxc6
{[%clk 0:00:10.9]} 39. Rd7+ {[%clk 0:01:07.4]} 39... Kf6 {[%clk 0:00:09.2]} 40.
Rd6+ {[%clk 0:01:07.5]} 40... Kg7 {[%clk 0:00:08.7]} 41. Rxc6 {[%clk 0:01:01.7]}
41... Rxe3 {[%clk 0:00:09.1]} 42. b5 {[%clk 0:01:02.2]} 42... Rc3 {[%clk
0:00:09.3]} 43. b6 {[%clk 0:00:56.2]} 43... Rc2+ {[%clk 0:00:09.2]} 44. Kg1
{[%clk 0:00:56.5]} 44... Rb2 {[%clk 0:00:09.5]} 45. Be6 {[%clk 0:00:42.8]} 45...
Kf6 {[%clk 0:00:08.2]} 46. Bc8+ {[%clk 0:00:39.9]} 46... Ke5 {[%clk 0:00:08.2]}
47. Rxh6 {[%clk 0:00:38.7]} 47... Kf4 {[%clk 0:00:07.1]} 48. Rg6 {[%clk
0:00:34.4]} 48... Kf3 {[%clk 0:00:03.1]} 49. Bxf5 {[%clk 0:00:30]} 49... Rb5
{[%clk 0:00:02.9]} 50. Rxg5 {[%clk 0:00:27.5]} 50... Rxb6 {[%clk 0:00:02.3]} 51.
Rg2 {[%clk 0:00:24.3]} 51... Kf4 {[%clk 0:00:03.2]} 52. Bg4 {[%clk 0:00:24.1]}
52... Rb1+ {[%clk 0:00:02.7]} 53. Kh2 {[%clk 0:00:23.5]} 53... Rf1 {[%clk
0:00:03.2]} 54. Be2 {[%clk 0:00:21.5]} 54... Re1 {[%clk 0:00:02.9]} 55. h4
{[%clk 0:00:18.9]} 55... Ra1 {[%clk 0:00:02.2]} 56. h5 {[%clk 0:00:19.4]} 56...
Ra5 {[%clk 0:00:02.4]} 57. Kh3 {[%clk 0:00:18.8]} 57... Re5 {[%clk 0:00:02.5]}
58. Kh4 {[%clk 0:00:18.4]} 58... Kf5 {[%clk 0:00:02.8]} 59. Rg5+ {[%clk
0:00:18.2]} 59... Kf6 {[%clk 0:00:03.7]} 60. Rxe5 {[%clk 0:00:18.2]} 60... Kxe5
{[%clk 0:00:04.6]} 61. Kg5 {[%clk 0:00:18.9]} 61... Ke6 {[%clk 0:00:04.9]} 62.
Kg6 {[%clk 0:00:19.3]} 1-0